bitfinex-derivatives/quotes_SOLF0:USTF0_20241231
["timestamp","ask_amount","ask_price","bid_price","bid_amount"]
[1735616763588,11.14102742,189.89,189.82,8.50332742]
[1735616763791,11.14102742,189.89,189.83,4.12796583]
[1735616763991,11.14102742,189.89,189.84,6.76626583]
[1735616764191,2.6381,189.87,189.82,8.50332742]
[1735616764396,8.50332742,189.87,189.82,2.6387]
[1735616765400,8.50332742,189.87,189.8,11.14222742]
[1735616765596,7.27683868,189.96,189.78,10.00952742]
[1735616765597,8.50332742,189.85,189.78,10.00952742]
[1735616765791,11.52332742,189.85,189.79,4.12892567]
[1735616765995,11.52332742,189.85,189.78,10.00952742]
[1735616766190,11.52332742,189.85,189.79,4.12903982]
[1735616766395,11.52332742,189.85,189.76,8.50332742]
[1735616766396,8.50332742,189.83,189.76,8.50332742]
[1735616767102,2.6388,189.81,189.76,11.14272742]
[1735616767299,8.50332742,189.83,189.76,11.14272742]
[1735616767603,2.639,189.8,189.76,8.50332742]
[1735616767807,8.50332742,189.83,189.76,8.50332742]
[1735616768797,3.02,189.85,189.76,8.50332742]
[1735616769002,8.50332742,189.84,189.76,8.50332742]
[1735616769197,8.50332742,189.84,189.73,3.02]
[1735616769198,8.50332742,189.82,189.74,8.50332742]
[1735616769403,8.50332742,189.82,189.75,4.12835762]
[1735616769606,8.50332742,189.82,189.74,8.50332742]
[1735616769801,2.639,189.8,189.75,2.6397]
[1735616770106,2.639,189.8,189.74,8.50332742]
[1735616770107,8.50332742,189.8,189.74,8.50332742]
[1735616771306,11.52332742,189.8,189.74,8.50332742]
[1735616771511,2.6392,189.79,189.74,11.14312742]
[1735616772603,29.10735473,189.87,189.76,8.50332742]
[1735616772901,8.50332742,189.85,189.78,8.50332742]
[1735616773201,2.6385,189.84,189.78,8.50332742]
[1735616773503,8.50332742,189.85,189.78,8.50332742]
[1735616774103,11.14172742,189.85,189.8,2.6389]
[1735616774608,2.6385,189.84,189.78,8.50332742]
[1735616774803,8.50332742,189.85,189.78,8.50332742]
[1735616775704,11.14172742,189.85,189.8,2.6389]
[1735616776403,2.6384,189.85,189.8,11.14222742]
[1735616778110,11.14142742,189.87,189.8,8.50332742]
[1735616778308,5.2139956,189.88,189.82,8.50332742]
[1735616778611,2.1939956,189.88,189.85,2.6382]
[1735616779608,2.1939956,189.88,189.84,2.6384]
[1735616780212,2.6382,189.86,189.82,2.6386]
[1735616780414,8.50332742,189.86,189.8,4.5609]
[1735616780613,8.50332742,189.86,189.8,3.008]
[1735616781415,2.6383,189.85,189.8,5.6469]
[1735616781617,8.50332742,189.86,189.8,5.6469]
[1735616781813,8.50332742,189.86,189.8,11.51132742]
[1735616782213,3.02,189.87,189.8,3.008]
[1735616782614,3.02,189.87,189.8,1.4961]
[1735616782814,12.01419579,189.86,189.74,3.02]
[1735616783013,12.01419579,189.86,189.75,4.12411871]
[1735616783214,12.01419579,189.86,189.76,4.12411871]
[1735616783413,12.01419579,189.86,189.73,3.0648]
[1735616783613,12.01419579,189.86,189.74,4.12436896]
[1735616783912,12.01419579,189.86,189.75,4.12436896]
[1735616784113,12.01419579,189.86,189.73,3.0648]
[1735616784513,12.01419579,189.83,189.74,4.12463921]
[1735616784715,3.02,189.82,189.73,3.0648]
[1735616785013,2.6391,189.79,189.74,6.76433228]
[1735616785217,2.6391,189.79,189.74,2.6398]
[1735616787421,3.02,189.82,189.74,2.6398]
[1735616787717,2.6393,189.78,189.74,2.6398]
[1735616791519,3.02,189.82,189.7,1.6163]
[1735616791722,12.01419579,189.8,189.7,1.6163]
[1735616792422,12.01419579,189.8,189.71,2.6402]
[1735616792824,12.01419579,189.8,189.66,15.03419579]
[1735616793020,2.6395,189.77,189.67,4.11994533]
[1735616793227,5.6595,189.77,189.69,12.01419579]
[1735616794125,5.6595,189.77,189.72,2.64]
[1735616794827,3.02,189.77,189.74,2.6398]
[1735616795326,3.02,189.77,189.69,12.01419579]
[1735616795927,2.6396,189.76,189.69,12.01419579]
[1735616796225,3.02,189.77,189.66,12.01419579]
[1735616796422,2.6399,189.74,189.7,2.6403]
[1735616796627,3.02,189.77,189.66,12.01419579]
[1735616796827,3.02,189.77,189.67,4.11619938]
[1735616797026,3.02,189.77,189.66,12.01419579]
[1735616797235,2.6397,189.75,189.71,2.6402]
[1735616797725,2.6398,189.74,189.7,2.6403]
[1735616798130,3.02,189.77,189.66,12.01419579]
[1735616798323,3.02,189.77,189.67,4.11618177]
[1735616798524,3.02,189.77,189.66,12.01419579]
[1735616798724,3.02,189.77,189.67,4.11647664]
[1735616798929,2.6399,189.74,189.69,2.6405]
[1735616799125,3.02,189.77,189.66,12.01419579]
[1735616799421,3.02,189.77,189.67,4.11646239]
[1735616799625,3.02,189.77,189.66,12.01419579]
[1735616800030,2.6398,189.74,189.68,2.6406]
[1735616800329,3.02,189.77,189.68,2.6406]
[1735616801126,2.6401,189.73,189.68,2.6406]
[1735616801322,15.03419579,189.77,189.66,12.01419579]
[1735616801523,2.6401,189.72,189.67,2.6407]
[1735616802131,2.6401,189.72,189.68,2.6406]
[1735616804626,2.6402,189.71,189.67,2.6407]
[1735616806630,2.6402,189.71,189.66,7.69962746]
[1735616806830,3.02,189.74,189.68,7.69962746]
[1735616807136,10.71962746,189.77,189.7,7.69962746]
[1735616807532,7.69962746,189.77,189.7,7.69962746]
[1735616807731,3.02,189.78,189.74,2.6398]
[1735616808034,10.71962746,189.78,189.74,2.6398]
[1735616808229,29.10735473,189.8,189.72,7.69962746]
[1735616808429,3.02,189.8,189.76,2.6394]
[1735616809136,10.30883868,189.84,189.76,2.6394]
[1735616809338,7.69962746,189.81,189.75,2.6396]
[1735616809536,7.69962746,189.77,189.7,7.69962746]
[1735616809736,2.6397,189.76,189.7,7.69962746]
[1735616809927,7.69962746,189.77,189.7,10.33982746]
[1735616810335,7.69962746,189.77,189.66,3.02]
[1735616810336,3.02,189.78,189.71,7.69962746]
[1735616810537,3.02,189.78,189.73,7.69962746]
[1735616811233,3.02,189.78,189.71,7.69962746]
[1735616811940,5.6593,189.78,189.73,2.6398]
[1735616812136,7.69962746,189.77,189.73,2.6398]
[1735616812534,10.33912746,189.77,189.72,2.6401]
[1735616813032,10.33912746,189.77,189.73,2.6399]
[1735616813428,2.6399,189.74,189.65,4.544]
[1735616813628,2.6399,189.74,189.68,7.69962746]
[1735616814343,2.6399,189.74,189.69,2.6404]
[1735616814543,7.69962746,189.73,189.69,2.6404]
[1735616815038,10.33962746,189.73,189.69,2.6404]
[1735616815739,7.69962746,189.73,189.69,2.6404]
[1735616815941,3.02,189.78,189.68,7.69962746]
[1735616815942,7.69962746,189.75,189.68,7.69962746]
[1735616816144,7.69962746,189.77,189.7,7.69962746]
[1735616816742,10.33912746,189.77,189.72,2.6401]
[1735616817243,2.6398,189.74,189.7,10.33992746]
[1735616817537,2.6398,189.74,189.7,2.6403]
[1735616817944,10.33932746,189.75,189.71,2.6401]
[1735616819048,7.69962746,189.75,189.68,7.69962746]
[1735616819253,7.69962746,189.77,189.7,7.69962746]
[1735616819645,10.33912746,189.77,189.7,7.69962746]
[1735616819951,10.33912746,189.77,189.72,2.64]
[1735616820251,2.6393,189.78,189.74,2.6397]
[1735616820454,29.10735473,189.82,189.74,7.69962746]
[1735616820645,36.80698219,189.82,189.76,7.69962746]
[1735616820849,36.80698219,189.82,189.78,2.6391]
[1735616821051,36.80698219,189.82,189.74,7.69962746]
[1735616821754,10.33842746,189.82,189.75,4.12164156]
[1735616822052,10.33842746,189.82,189.75,1.6194]
[1735616822252,10.33842746,189.82,189.77,2.6393]
[1735616824259,2.6388,189.82,189.76,7.69962746]
[1735616824452,10.33832746,189.83,189.78,2.6392]
[1735616824658,7.69962746,189.81,189.75,1.6194]
[1735616824859,3.02,189.84,189.75,1.6194]
[1735616825058,7.69962746,189.81,189.77,2.6394]
[1735616825551,10.33862746,189.81,189.76,2.6394]
[1735616826451,7.69962746,189.79,189.75,1.6194]
[1735616826650,7.69962746,189.79,189.73,2.6398]
[1735616826853,7.69962746,189.79,189.72,7.69962746]
[1735616827058,7.69962746,189.77,189.72,2.6399]
[1735616827557,7.69962746,189.75,189.69,2.6405]
[1735616827959,7.69962746,189.73,189.66,12.19002746]
[1735616828348,7.69962746,189.73,189.68,2.6406]
[1735616828758,7.69962746,189.73,189.66,12.19002746]
[1735616829062,7.69962746,189.73,189.67,4.13195234]
[1735616829258,7.69962746,189.73,189.68,4.13195234]
[1735616829455,7.69962746,189.73,189.66,12.19002746]
[1735616829660,10.33962746,189.73,189.69,2.6405]
[1735616830458,2.64,189.73,189.69,2.6405]
[1735616831159,5.6598,189.74,189.69,2.6405]
[1735616831463,3.02,189.74,189.69,2.6405]
[1735616831762,2.6399,189.73,189.69,2.6405]
[1735616832461,5.6598,189.74,189.69,2.6405]
[1735616835160,3.02,189.74,189.71,2.6402]
[1735616835769,14.67083437,189.75,189.71,2.6402]
[1735616836068,3.02,189.78,189.68,12.03103437]
[1735616836261,3.02,189.78,189.69,4.13236134]
[1735616836460,3.02,189.78,189.74,2.6398]
[1735616837963,14.67023437,189.79,189.74,2.6398]
[1735616838265,15.05103437,189.79,189.76,2.6395]
[1735616838465,15.05103437,189.79,189.68,15.05103437]
[1735616838770,15.05103437,189.79,189.69,4.13194751]
[1735616839059,2.6393,189.78,189.7,4.13194751]
[1735616839266,15.05103437,189.79,189.71,4.13194783]
[1735616839470,15.05103437,189.79,189.72,4.13194783]
[1735616839684,17.69023437,189.79,189.74,2.6398]
[1735616839967,15.05103437,189.79,189.68,15.05103437]
[1735616840164,15.05103437,189.79,189.69,4.1320326]
[1735616840362,2.6394,189.77,189.72,2.64]
[1735616840759,15.05103437,189.79,189.66,4.4904]
[1735616840966,12.03103437,189.76,189.67,4.13225764]
[1735616841269,12.03103437,189.76,189.68,4.13225764]
[1735616841567,12.03103437,189.76,189.66,4.4904]
[1735616841769,12.03103437,189.76,189.67,4.13244256]
[1735616841968,12.03103437,189.76,189.68,4.13244256]
[1735616842170,12.03103437,189.76,189.66,4.4904]
[1735616842370,12.03103437,189.76,189.67,4.1324149]
[1735616842577,2.6399,189.74,189.7,2.6403]
[1735616842776,12.03103437,189.76,189.7,2.6403]
[1735616844572,2.6397,189.75,189.7,2.6403]
[1735616845668,2.6399,189.74,189.7,2.6403]
[1735616846867,2.6397,189.75,189.66,4.4904]
[1735616847070,2.6397,189.75,189.67,4.13183563]
[1735616847272,2.6397,189.75,189.7,2.6403]
[1735616849867,12.03103437,189.76,189.7,2.6403]
[1735616850072,2.6399,189.74,189.7,2.6403]
[1735616852277,10.33811961,189.74,189.7,2.6403]
[1735616853672,2.6399,189.74,189.7,2.6403]
[1735616853875,29.10735473,189.8,189.69,7.69821961]
[1735616854172,7.69821961,189.79,189.73,7.69821961]
[1735616854375,7.69821961,189.79,189.76,2.6395]
[1735616854673,29.10735473,189.8,189.73,7.69821961]
[1735616854872,29.10735473,189.8,189.79,2.6391]
[1735616855177,145.593612,189.84,189.77,7.69821961]
[1735616855178,50.0890118,189.84,189.77,7.69821961]
[1735616855473,50.0890118,189.84,189.79,2.6391]
[1735616855869,52.7275118,189.84,189.79,2.6391]
[1735616856078,50.0890118,189.84,189.79,2.6391]
[1735616856267,7.69821961,189.84,189.79,2.6391]
[1735616856973,7.69821961,189.8,189.76,1.5571]
[1735616857676,7.69821961,189.82,189.76,1.5571]
[1735616858268,7.69821961,189.8,189.75,1.6187]
[1735616858476,7.69821961,189.8,189.73,7.69821961]
[1735616858677,2.6391,189.79,189.75,2.6396]
[1735616858873,7.69821961,189.8,189.73,7.69821961]
[1735616859079,7.69821961,189.8,189.74,4.12901825]
[1735616859378,7.69821961,189.82,189.75,11.82723786]
[1735616859577,7.69821961,189.82,189.76,4.12901825]
[1735616859777,7.69821961,189.82,189.77,4.12851694]
[1735616859975,7.69821961,189.82,189.75,7.69821961]
[1735616860176,7.69821961,189.82,189.77,2.6392]
[1735616860374,7.69821961,189.82,189.75,7.69821961]
[1735616860571,7.69821961,189.82,189.76,4.12815423]
[1735616860776,7.69821961,189.82,189.77,4.12815423]
[1735616860982,7.69821961,189.82,189.75,7.69821961]
[1735616861174,7.69821961,189.82,189.76,4.12813951]
[1735616861370,7.69821961,189.82,189.75,7.69821961]
[1735616861575,7.69821961,189.82,189.76,4.12747518]
[1735616861771,7.69821961,189.82,189.77,4.12747518]
[1735616861974,7.69821961,189.82,189.75,7.69821961]
[1735616862176,7.69821961,189.82,189.76,4.12740174]
[1735616862379,7.69821961,189.82,189.77,4.12740174]
[1735616862581,7.69821961,189.82,189.75,7.69821961]
[1735616862779,7.69821961,189.82,189.76,4.12688861]
[1735616862975,2.6387,189.82,189.78,2.6392]
[1735616863180,9.89221521,189.88,189.79,7.69821961]
[1735616863383,9.89221521,189.88,189.81,7.69821961]
[1735616863575,29.10735473,189.89,189.83,7.69821961]
[1735616864078,29.10735473,189.89,189.88,2.6378]
[1735616864476,26.67405473,189.89,189.88,2.6378]
[1735616864882,2.6369,189.95,189.89,2.6375]
[1735616865081,2.6369,189.95,189.84,1.5451]
[1735616865386,21.40773431,189.97,189.85,4.11669969]
[1735616865586,21.40773431,189.97,189.91,2.6374]
[1735616866081,21.40773431,189.97,189.89,2.6376]
[1735616866282,16.56419563,189.97,189.84,1.5451]
[1735616866477,16.56419563,189.97,189.85,4.10894519]
[1735616866681,2.637,189.94,189.89,2.6377]
[1735616867588,16.56419563,189.97,189.9,2.6375]
[1735616867790,16.56419563,189.97,189.86,12.00459563]
[1735616867990,13.58989563,190.0,189.87,7.12767457]
[1735616868184,2.6364,189.98,189.92,2.6371]
[1735616868494,13.58989563,190.0,189.92,2.6371]
[1735616868679,3.02,189.99,189.87,3.02]
[1735616868883,2.6367,189.96,189.91,2.6373]
[1735616869682,3.02,189.98,189.87,3.02]
[1735616869890,5.6564,189.98,189.87,3.02]
[1735616871288,5.6564,189.98,189.92,2.6372]
[1735616872688,2.6367,189.96,189.9,2.6374]
[1735616872990,2.6367,189.96,189.87,3.02]
[1735616874987,2.6367,189.96,189.9,2.6374]
[1735616875892,2.6367,189.96,189.91,2.6374]
[1735616877594,2.6369,189.95,189.89,2.6375]
[1735616877795,12.00459563,189.97,189.85,1.5219]
[1735616877997,13.46449563,189.97,189.85,1.5219]
[1735616878395,2.6371,189.94,189.87,2.6378]
[1735616878596,13.46449563,189.97,189.87,2.6378]
[1735616879794,13.46449563,189.97,189.85,1.5219]
[1735616880099,2.6372,189.93,189.88,2.6378]
[1735616881000,3.02,189.93,189.87,2.6379]
[1735616881399,3.02,189.93,189.84,1.5451]
[1735616881993,2.6372,189.92,189.84,1.5451]
[1735616882900,2.6372,189.92,189.87,2.6378]
[1735616884401,7.6839485,189.91,189.87,2.6378]
[1735616884799,7.6839485,189.95,189.92,2.6371]
[1735616884995,7.6839485,189.95,189.89,7.6839485]
[1735616885901,7.1166,189.97,189.89,7.6839485]
[1735616886400,7.6839485,189.96,189.89,7.6839485]
[1735616886598,7.6839485,189.98,189.91,7.6839485]
[1735616886797,7.6839485,189.98,189.93,7.6839485]
[1735616887392,1.5853,190.0,189.93,7.6839485]
[1735616887597,7.6839485,190.01,189.99,2.6363]
[1735616887999,7.6839485,190.01,189.95,7.6839485]
[1735616888197,7.6839485,189.99,189.94,2.6369]
[1735616889299,7.6839485,189.99,189.92,10.7039485]
[1735616889500,7.6839485,189.99,189.88,4.4981]
[1735616889700,7.6839485,189.97,189.9,7.6839485]
[1735616890598,2.6368,189.96,189.91,2.6373]
[1735616891394,7.6839485,189.95,189.88,9.1620485]
[1735616891704,2.637,189.94,189.85,3.02]
[1735616891903,7.6839485,189.93,189.86,7.6839485]
[1735616892304,2.637,189.94,189.89,2.6376]
[1735616892803,2.6371,189.93,189.88,2.6378]
[1735616895302,3.02,189.93,189.83,12.00432384]
[1735616895500,12.00432384,189.9,189.78,13.51992384]
[1735616895705,12.00432384,189.9,189.79,4.1019735]
[1735616896005,12.00432384,189.9,189.8,4.1019735]
[1735616896202,2.6378,189.88,189.83,2.6385]
[1735616896407,5.6578,189.88,189.83,2.6385]
[1735616897505,3.02,189.88,189.81,2.6387]
[1735616898203,12.00432384,189.87,189.77,37.73747788]
[1735616898404,12.00432384,189.87,189.78,4.10874556]
[1735616898604,12.00432384,189.87,189.75,13.58582384]
[1735616898801,12.00432384,189.87,189.76,4.11213884]
[1735616899004,12.00432384,189.87,189.77,4.11213884]
[1735616899203,12.00432384,189.87,189.75,13.58582384]
[1735616899407,2.6385,189.84,189.79,2.639]
[1735616899603,12.00432384,189.87,189.75,13.58582384]
[1735616899907,2.6388,189.82,189.76,2.6394]
[1735616900108,5.6588,189.82,189.76,2.6394]
[1735616900501,3.02,189.82,189.78,2.6392]
[1735616902305,5.6586,189.82,189.78,2.6392]
[1735616904409,5.6586,189.82,189.76,2.6394]
[1735616905012,5.6586,189.82,189.77,2.6393]
[1735616905213,5.6586,189.82,189.73,1.6201]
[1735616905514,5.6586,189.82,189.74,4.11316548]
[1735616905814,5.6586,189.82,189.73,1.6201]
[1735616906008,5.6586,189.82,189.74,4.11387273]
[1735616906215,5.6586,189.82,189.73,1.6201]
[1735616906414,5.6586,189.82,189.77,2.6392]
[1735616908013,5.6586,189.82,189.78,2.6392]
[1735616909014,3.02,189.82,189.73,1.6201]
[1735616909215,2.6389,189.81,189.76,2.6394]
[1735616909416,3.02,189.82,189.76,2.6394]
[1735616909616,2.639,189.8,189.76,2.6394]
[1735616910115,2.6388,189.81,189.76,2.6394]
[1735616910615,3.02,189.82,189.72,16.11426935]
[1735616910810,3.02,189.82,189.73,4.10994551]
[1735616911012,3.02,189.82,189.72,13.61102384]
[1735616911213,3.02,189.82,189.73,4.10964734]
[1735616911406,5.6587,189.82,189.75,2.6396]
[1735616911608,5.6587,189.82,189.72,13.61102384]
[1735616911807,3.02,189.82,189.73,4.10904463]
[1735616912016,3.02,189.82,189.74,4.10899942]
[1735616912209,3.02,189.82,189.72,13.61102384]
[1735616912408,12.00432384,189.87,189.75,12.00432384]
[1735616912613,2.6378,189.88,189.84,2.6383]
[1735616913411,15.02432384,189.9,189.79,4.10797722]
[1735616913614,15.02432384,189.9,189.78,12.00432384]
[1735616913615,3.02,189.9,189.78,12.00432384]
[1735616913815,3.02,189.9,189.79,5.61579475]
[1735616914016,3.02,189.9,189.8,4.10799475]
[1735616914218,3.02,189.9,189.87,2.6379]
[1735616914424,7.68468037,189.91,189.87,2.6379]
[1735616914918,7.68468037,189.89,189.85,2.6381]
[1735616915223,7.68468037,189.87,189.81,3.02]
[1735616915419,7.68468037,189.89,189.86,2.6381]
[1735616920021,7.68468037,189.91,189.88,2.6378]
[1735616920224,7.68468037,189.91,189.84,7.68468037]
[1735616921434,7.68468037,189.91,189.88,2.6377]
[1735616922134,3.02,189.94,189.9,2.6375]
[1735616922429,10.70468037,189.94,189.9,2.6375]
[1735616922833,7.68468037,189.94,189.9,2.6375]
[1735616924230,3.02,189.96,189.86,2.638]
[1735616924231,7.68468037,189.92,189.86,2.638]
[1735616925032,2.6374,189.91,189.87,2.6379]
[1735616925334,7.68468037,189.92,189.87,2.6379]
[1735616925737,7.68468037,189.92,189.88,2.6377]
[1735616928043,7.68468037,189.94,189.9,2.6374]
[1735616929241,7.68468037,189.94,189.88,7.68468037]
[1735616929442,7.68468037,189.94,189.91,2.6373]
[1735616931740,7.68468037,189.96,189.93,2.6371]
[1735616931943,3.095,190.0,189.92,7.68468037]
[1735616932141,15.83,190.17,189.94,7.68468037]
[1735616932142,7.68468037,190.01,189.94,7.68468037]
[1735616932341,7.68468037,190.01,189.97,2.6364]
[1735616932843,7.68468037,190.01,189.94,7.68468037]
[1735616932844,10.32078037,190.01,189.96,2.6367]
[1735616933044,7.68468037,190.01,189.96,2.6367]
[1735616933447,7.68468037,189.99,189.96,2.6367]
[1735616933641,2.6365,189.98,189.92,7.68468037]
[1735616934044,7.68468037,189.99,189.92,7.68468037]
[1735616935350,7.68468037,189.99,189.96,2.6367]
[1735616936840,7.68468037,190.01,189.96,2.6367]
[1735616937044,10.70468037,190.02,189.94,7.68468037]
[1735616937944,7.68468037,190.0,189.92,7.68468037]
[1735616938250,7.68468037,189.98,189.92,7.68468037]
[1735616938748,7.68468037,189.96,189.89,1.5974]
[1735616939349,7.68468037,189.96,189.9,4.10219266]
[1735616939545,7.68468037,189.96,189.89,1.5974]
[1735616939850,7.68468037,189.96,189.9,4.10232337]
[1735616940144,7.68468037,189.96,189.89,1.5974]
[1735616940348,7.68468037,189.96,189.9,4.10218151]
[1735616940547,7.68468037,189.96,189.89,1.5974]
[1735616941452,7.68468037,189.96,189.91,2.6374]
[1735616942051,7.68468037,189.96,189.92,2.6372]
[1735616942250,7.68468037,189.96,189.9,4.10187261]
[1735616942442,7.68468037,189.96,189.9,7.68468037]
[1735616943048,7.68468037,189.96,189.92,2.6371]
[1735616943748,10.32138037,189.96,189.9,10.32208037]
[1735616943951,7.68468037,189.94,189.9,2.6374]
[1735616944346,10.32138037,189.96,189.88,7.68468037]
[1735616944553,7.68468037,189.96,189.88,7.68468037]
[1735616945154,7.68468037,189.96,189.9,7.68468037]
[1735616945349,7.68468037,189.98,189.9,7.68468037]
[1735616945652,10.32118037,189.98,189.93,2.637]
[1735616945851,10.32118037,189.98,189.9,7.68468037]
[1735616946248,2.6366,189.97,189.93,2.637]
[1735616946951,10.32138037,189.96,189.92,2.6372]
[1735616948054,10.32138037,189.96,189.91,2.6374]
[1735616948556,10.32138037,189.96,189.88,7.68468037]
[1735616948557,7.68468037,189.96,189.88,7.68468037]
[1735616948758,2.6368,189.95,189.9,2.6375]
[1735616949560,2.6368,189.95,189.91,2.6373]
[1735616949957,7.68468037,189.96,189.88,7.68468037]
[1735616950257,7.68468037,189.96,189.9,7.68468037]
[1735616951059,7.68468037,189.96,189.92,2.6371]
[1735616952057,10.32138037,189.96,189.92,2.6371]
[1735616952555,7.68468037,189.96,189.9,2.6375]
[1735616953360,2.637,189.95,189.88,7.68468037]
[1735616954161,7.68468037,189.98,189.93,2.6371]
[1735616954365,7.68468037,189.98,189.9,7.68468037]
[1735616954858,10.72128037,190.0,189.92,7.68468037]
[1735616955056,30.66525862,190.01,189.94,7.68468037]
[1735616955057,29.13305862,190.01,189.94,7.68468037]
[1735616955360,10.32058037,190.02,189.98,2.6364]
[1735616955865,10.32058037,190.02,189.94,7.68468037]
[1735616956164,10.32058037,190.02,189.97,2.6365]
[1735616957463,7.68468037,190.02,189.94,7.68468037]
[1735616957658,7.68468037,190.0,189.92,10.70468037]
[1735616957859,2.6368,189.96,189.91,2.6374]
[1735616958260,10.68468037,189.98,189.9,7.68468037]
[1735616958464,13.32118037,189.98,189.92,2.6371]
[1735616958768,10.68468037,189.98,189.92,2.6371]
[1735616960159,10.68468037,189.98,189.9,7.68468037]
[1735616960358,10.68468037,189.98,189.92,7.68468037]
[1735616960560,10.68468037,189.98,189.88,2.9882]
[1735616960561,10.68468037,189.98,189.9,7.68468037]
[1735616960756,7.68468037,189.96,189.92,2.6372]
[1735616960958,7.68468037,189.96,189.88,10.67288037]
[1735616961159,7.68468037,189.96,189.89,4.12538976]
[1735616961365,10.32138037,189.96,189.91,2.6373]
[1735616962458,10.32138037,189.96,189.92,2.6372]
[1735616962761,7.68468037,189.99,189.93,4.1243445]
[1735616962965,32.13305862,190.01,189.97,2.6365]
[1735616963167,29.13305862,190.01,189.94,7.68468037]
[1735616963366,29.13305862,190.01,189.95,4.12271449]
[1735616963563,29.13305862,190.01,189.98,2.6364]
[1735616963758,29.13305862,190.01,189.94,7.68468037]
[1735616963963,10.32058037,190.02,189.95,4.12355519]
[1735616964264,7.68468037,190.0,189.97,2.6364]
[1735616964465,10.32058037,190.02,189.97,2.6364]
[1735616965567,10.32058037,190.02,189.98,2.6364]
[1735616966270,2.636,190.01,189.89,1.5522]
[1735616966467,7.68468037,189.98,189.92,7.68468037]
[1735616966665,3.0,189.97,189.93,4.12483499]
[1735616966864,3.0,189.97,189.9,7.68468037]
[1735616967067,3.0,189.97,189.91,4.1269795]
[1735616967268,3.0,189.97,189.92,4.1269795]
[1735616967464,3.0,189.97,189.93,4.1269795]
[1735616967670,3.0,189.97,189.92,7.68468037]
[1735616967971,10.68468037,190.01,189.94,7.68468037]
[1735616968171,10.68468037,190.01,189.96,2.6366]
[1735616968364,10.68468037,190.01,189.94,7.68468037]
[1735616968570,10.68468037,190.01,189.95,4.12458734]
[1735616968871,10.68468037,190.01,189.96,4.12458734]
[1735616969075,10.68468037,190.01,189.97,4.12435232]
[1735616969274,7.68468037,190.01,189.98,2.6364]
[1735616969469,7.68468037,190.01,189.95,7.68468037]
[1735616969669,7.68468037,190.01,189.91,3.0]
[1735616969869,2.6362,190.0,189.96,2.6367]
[1735616970064,7.68468037,190.01,189.96,2.6367]
[1735616970567,2.6362,190.0,189.95,2.6368]
[1735616973480,2.6362,190.0,189.96,2.6367]
[1735616978678,7.68468037,190.01,189.96,2.6367]
[1735616978879,2.6363,189.99,189.96,2.6367]
[1735616979082,7.68468037,190.01,189.96,2.6367]
[1735616980282,10.32068037,190.01,189.97,2.6365]
[1735616981680,7.68468037,190.01,189.93,7.68468037]
[1735616981983,7.68468037,189.99,189.94,4.12857467]
[1735616982185,7.68468037,189.99,189.91,10.68468037]
[1735616982384,2.6366,189.97,189.92,4.13017375]
[1735616982587,7.68468037,189.99,189.93,4.13017375]
[1735616982782,7.68468037,189.99,189.94,4.13017375]
[1735616982982,7.68468037,189.99,189.91,10.68468037]
[1735616983187,7.68468037,189.99,189.92,4.12933629]
[1735616983380,7.68468037,189.99,189.93,4.12933629]
[1735616983582,2.6364,189.98,189.94,6.76623629]
[1735616983785,2.6364,189.98,189.94,2.6369]
[1735616985377,7.68468037,189.95,189.9,2.6374]
[1735616985576,7.68468037,189.95,189.88,2.9882]
[1735616985577,7.68468037,189.95,189.91,4.1312329]
[1735616985777,7.68468037,189.95,189.92,4.1312329]
[1735616985983,7.68468037,189.95,189.88,1.5239]
[1735616986186,7.68468037,189.95,189.89,4.13136831]
[1735616986387,7.68468037,189.95,189.9,4.13136831]
[1735616986590,7.68468037,189.95,189.91,4.13136831]
[1735616986778,7.68468037,189.95,189.88,1.5239]
[1735616987087,7.68468037,189.95,189.89,4.13105986]
[1735616987287,2.6371,189.94,189.9,4.13105986]
[1735616987487,7.68468037,189.93,189.87,7.68468037]
[1735616987688,7.68468037,189.93,189.88,4.13182543]
[1735616987888,2.6376,189.9,189.84,7.68468037]
[1735616988190,7.68468037,189.91,189.85,4.13263393]
[1735616988389,7.68468037,189.91,189.86,4.13263393]
[1735616988682,7.68468037,189.89,189.84,7.68468037]
[1735616988887,7.68468037,189.89,189.85,4.1320703]
[1735616989091,7.68468037,189.89,189.82,7.68468037]
[1735616989291,7.68468037,189.89,189.85,2.6381]
[1735616989483,7.68468037,189.91,189.85,2.6381]